bitfinex/quotes_BTCUSD_20250602
["timestamp","ask_amount","ask_price","bid_price","bid_amount"]
[1748892174083,0.004,104460.0,104450.0,0.32514902]
[1748892174335,0.004,104460.0,104450.0,0.32514814]
[1748892175247,0.01297626,104460.0,104450.0,0.32514814]
[1748892175461,0.004,104460.0,104450.0,0.32514814]
[1748892175672,0.01297626,104460.0,104450.0,0.32514814]
[1748892176626,0.004,104460.0,104450.0,0.32514814]
[1748892177281,0.01297626,104460.0,104450.0,0.32514814]
[1748892177501,0.004,104460.0,104450.0,0.32514814]
[1748892177981,0.04323511,104460.0,104450.0,0.32514814]
[1748892178187,0.04323511,104460.0,104450.0,0.32514361]
[1748892181915,0.04323511,104460.0,104450.0,0.32514249]
[1748892185037,0.04323511,104460.0,104450.0,0.27900801]
[1748892185250,0.05280732,104460.0,104450.0,0.27900801]
[1748892185573,0.04323511,104460.0,104450.0,0.27900707]
[1748892186392,0.05280741,104460.0,104450.0,0.27900707]
[1748892186595,0.04323511,104460.0,104450.0,0.27900707]
[1748892187622,0.05221137,104460.0,104450.0,0.27900707]
[1748892187825,0.04323511,104460.0,104450.0,0.27900707]
[1748892188027,0.04323511,104460.0,104450.0,0.35556153]
[1748892188635,0.05221137,104460.0,104450.0,0.35556153]
[1748892188837,0.06178358,104460.0,104450.0,0.35556153]
[1748892189465,0.06178346,104460.0,104450.0,0.35556153]
[1748892189670,0.06178345,104460.0,104450.0,0.35556153]
[1748892189884,0.05280732,104460.0,104450.0,0.35556153]
[1748892190243,0.05280732,104460.0,104450.0,0.27900707]
[1748892190461,0.04323511,104460.0,104450.0,0.27900707]
[1748892191958,0.04323511,104460.0,104450.0,0.27900576]
[1748892193013,0.05221125,104460.0,104450.0,0.27900576]
[1748892193222,0.04323511,104460.0,104450.0,0.27900576]
[1748892193432,0.04323511,104460.0,104450.0,0.27900624]
[1748892194329,0.05221147,104460.0,104450.0,0.27900624]
[1748892194985,0.25384138,104460.0,104450.0,0.0305]
[1748892195177,0.25384138,104460.0,104440.0,0.23157165]
[1748892195178,0.2773592,104460.0,104440.0,0.23157165]
[1748892195435,0.02872021,104450.0,104440.0,0.59988295]
[1748892195655,0.01914653,104450.0,104440.0,0.25988372]
[1748892196082,0.00957313,104450.0,104440.0,0.25988372]
[1748892196500,0.01257313,104450.0,104440.0,0.25988372]
[1748892197163,0.01357313,104450.0,104440.0,0.25988337]
[1748892197350,0.004,104450.0,104440.0,0.25988337]
[1748892198854,0.004,104450.0,104440.0,0.25988866]
[1748892199956,0.01357322,104450.0,104440.0,0.25988866]
[1748892201048,0.004,104450.0,104440.0,0.25988955]
[1748892201318,0.01357322,104450.0,104440.0,0.25988955]
[1748892202329,0.01357313,104450.0,104440.0,0.25988955]
[1748892204294,0.004,104450.0,104440.0,0.25988955]
[1748892204775,0.004,104450.0,104440.0,0.29681897]
[1748892204972,0.004,104450.0,104440.0,0.30598585]
[1748892208860,0.004,104450.0,104440.0,0.94098585]
[1748892209073,0.004,104450.0,104440.0,1.03684015]
[1748892212910,0.004,104450.0,104440.0,1.03684483]
[1748892214219,0.004,104450.0,104440.0,0.74184483]
[1748892214428,0.004,104450.0,104440.0,1.03684483]
[1748892215717,0.004,104450.0,104440.0,0.74184483]
[1748892215921,0.004,104450.0,104440.0,1.03684483]
[1748892216780,0.004,104450.0,104440.0,1.03684158]
[1748892217220,0.004,104450.0,104440.0,0.74184158]
[1748892217443,0.004,104450.0,104440.0,1.03680158]
[1748892218765,0.004,104450.0,104440.0,0.74184158]
[1748892218985,0.004,104450.0,104440.0,1.03680158]
[1748892220572,0.004,104450.0,104440.0,1.03680373]
[1748892232057,0.004,104450.0,104440.0,1.03680241]
[1748892235891,0.004,104450.0,104440.0,1.02763327]
[1748892236150,0.004,104450.0,104440.0,1.03680559]
[1748892237732,0.004,104450.0,104440.0,1.12780559]
[1748892239513,0.004,104450.0,104440.0,1.08166755]
[1748892239957,0.004,104450.0,104440.0,1.08166898]
[1748892242512,0.004,104450.0,104440.0,0.99066898]
[1748892247356,0.004,104450.0,104440.0,0.98149523]
[1748892247581,0.004,104450.0,104440.0,0.99067066]
[1748892248408,0.004,104450.0,104440.0,1.08318188]
[1748892251233,0.004,104450.0,104440.0,1.07400645]
[1748892251459,0.004,104450.0,104440.0,1.0831825]
[1748892253172,0.004,104450.0,104440.0,1.1741025]
[1748892254446,0.003,104450.0,104440.0,1.1741025]
[1748892254864,0.03959944,104460.0,104450.0,0.25269993]
[1748892255083,0.03959944,104460.0,104450.0,0.32461491]
[1748892255306,0.08140779,104470.0,104460.0,0.22017886]
[1748892255519,0.11384914,104470.0,104460.0,0.22935491]
[1748892255729,0.10427902,104470.0,104460.0,0.22935175]
[1748892255945,0.11325489,104470.0,104460.0,0.25945175]
[1748892256154,0.10427902,104470.0,104460.0,0.28988037]
[1748892256384,0.07531287,104470.0,104460.0,0.28988037]
[1748892256616,0.04240863,104470.0,104460.0,1.52058751]
[1748892256844,0.01296591,104470.0,104460.0,1.61150751]
[1748892257496,0.01296591,104470.0,104460.0,1.11149467]
[1748892257731,0.00996591,104470.0,104460.0,1.15036346]
[1748892257940,0.00896591,104470.0,104460.0,1.15536346]
[1748892258150,0.00896591,104470.0,104460.0,1.11649467]
[1748892258989,0.00896591,104470.0,104460.0,1.10732178]
[1748892259195,0.00896591,104470.0,104460.0,1.11647536]
[1748892259845,0.00896591,104470.0,104460.0,1.15907136]
[1748892260277,0.00896591,104470.0,104460.0,1.6587843]
[1748892261136,0.00896591,104470.0,104460.0,1.6537843]
[1748892262198,0.00896591,104470.0,104460.0,1.6507843]
[1748892262401,0.00896591,104470.0,104460.0,1.6627843]
[1748892262610,0.00896591,104470.0,104460.0,1.6747843]
[1748892264264,0.00896591,104470.0,104460.0,1.17499136]
[1748892266490,0.10952498,104510.0,104500.0,0.21052584]
[1748892266694,0.11957722,104510.0,104500.0,0.22009476]
[1748892267559,0.12914568,104510.0,104500.0,0.22966358]
[1748892269413,0.16767602,104510.0,104500.0,0.22966358]
[1748892270473,0.10949643,104510.0,104500.0,0.27272599]
[1748892270687,0.12053224,104510.0,104500.0,0.27272599]
[1748892270904,0.0390144,104510.0,104500.0,0.22966376]
[1748892271115,0.04858222,104510.0,104500.0,0.24546376]
[1748892271330,0.0390144,104510.0,104500.0,0.24546376]
[1748892271554,0.04858203,104510.0,104500.0,0.24546376]
[1748892271752,0.0390144,104510.0,104500.0,0.24546376]
[1748892272035,0.05814994,104510.0,104500.0,0.30550601]
[1748892272253,0.0390144,104510.0,104500.0,0.29010601]
[1748892272459,0.04858203,104510.0,104500.0,0.29010601]
[1748892272667,0.04858203,104510.0,104500.0,0.30550601]
[1748892272856,0.04858203,104510.0,104500.0,0.29010601]
[1748892273064,0.05814985,104510.0,104500.0,0.29010601]
[1748892273277,0.06771776,104510.0,104500.0,0.29010601]
[1748892273485,0.05814985,104510.0,104500.0,0.29010601]
[1748892273700,0.04858203,104510.0,104500.0,0.30650601]
[1748892274346,0.0390144,104510.0,104500.0,0.30650601]
[1748892274565,0.00048406,104510.0,104500.0,0.30650601]
[1748892274787,0.00048406,104510.0,104500.0,1.25118878]
[1748892275017,0.00048406,104510.0,104500.0,1.34210523]
[1748892277262,0.00048406,104510.0,104500.0,1.39232622]
[1748892278050,0.00048406,104510.0,104500.0,1.39231672]
[1748892278253,0.00048406,104510.0,104500.0,1.40431672]
[1748892280599,0.00048406,104510.0,104500.0,0.90460378]
[1748892281853,0.00048406,104510.0,104500.0,0.90459912]
[1748892282503,0.00048406,104510.0,104500.0,0.77545813]
[1748892282714,0.00048406,104510.0,104500.0,0.42636031]
[1748892282715,0.01005169,104510.0,104500.0,0.42636031]
[1748892282895,0.00048406,104510.0,104500.0,0.70531806]
[1748892283591,0.00048406,104510.0,104500.0,0.59366376]
[1748892285080,0.00048406,104510.0,104500.0,0.60936376]
[1748892285309,0.00048406,104510.0,104500.0,0.70187498]
[1748892291260,0.00048406,104510.0,104500.0,0.71797498]
[1748892292972,0.00048406,104510.0,104500.0,0.72710176]
[1748892293188,0.00048406,104510.0,104500.0,0.72710096]
[1748892296903,0.00048406,104510.0,104500.0,0.7271057]
[1748892300452,0.01005169,104510.0,104500.0,0.7271057]
[1748892300678,0.00048406,104510.0,104500.0,0.71797498]
[1748892300917,0.00048406,104510.0,104500.0,0.63460142]
[1748892301828,0.01005169,104510.0,104500.0,0.63460142]
[1748892302079,0.00048406,104510.0,104500.0,0.63460142]
[1748892302292,0.02918805,104510.0,104500.0,0.61850142]
[1748892302504,0.01961978,104510.0,104500.0,0.60280142]
[1748892302779,0.01961969,104510.0,104500.0,0.60280142]
[1748892303033,0.02859196,104510.0,104500.0,0.70078744]
[1748892303241,0.01961969,104510.0,104500.0,0.70078744]
[1748892303657,0.01961969,104510.0,104500.0,0.68878744]
[1748892303864,0.01961969,104510.0,104500.0,0.69278744]
[1748892304076,0.01961969,104510.0,104500.0,0.68078744]
[1748892304284,0.01961969,104510.0,104500.0,0.69728744]
[1748892304498,0.01005169,104510.0,104500.0,0.69729208]
[1748892304940,0.01005188,104510.0,104500.0,0.70129208]
[1748892305126,0.01005178,104510.0,104500.0,0.70129208]
[1748892305332,0.01005169,104510.0,104500.0,0.70129208]
[1748892305539,0.00048406,104510.0,104500.0,0.70129208]
[1748892306844,0.01005169,104510.0,104500.0,0.70129208]
[1748892307636,0.00048406,104510.0,104500.0,0.70129208]
[1748892308337,0.00048406,104510.0,104500.0,0.70129348]
[1748892309978,0.00945441,104510.0,104500.0,0.70129348]
[1748892310204,0.00048406,104510.0,104500.0,0.70129348]
[1748892311340,0.00945403,104510.0,104500.0,0.70129348]
[1748892311549,0.00048406,104510.0,104500.0,0.70129348]
[1748892311984,0.00945404,104510.0,104500.0,0.69214978]
[1748892312192,0.00048406,104510.0,104500.0,0.70130318]
[1748892315278,0.00945402,104510.0,104500.0,0.70130318]
[1748892315510,0.00048406,104510.0,104500.0,0.79715748]
[1748892315731,0.00945384,104510.0,104500.0,0.79715748]
[1748892315981,0.00048406,104510.0,104500.0,0.79715801]
[1748892318741,0.00945377,104510.0,104500.0,0.79715801]
[1748892318965,0.00048406,104510.0,104500.0,0.79715801]
[1748892319825,0.00048406,104510.0,104500.0,0.79715657]
[1748892323634,0.00048406,104510.0,104500.0,0.7971544]
[1748892327471,0.00048406,104510.0,104500.0,0.79715298]
[1748892331177,0.00048406,104510.0,104500.0,1.09171298]
[1748892331395,0.00048406,104510.0,104500.0,1.09171226]
[1748892335253,0.01005178,104510.0,104500.0,0.61941194]
[1748892335474,0.01961941,104510.0,104500.0,0.61941194]
[1748892335700,0.01005169,104510.0,104500.0,0.61941194]
[1748892335903,0.00048406,104510.0,104500.0,0.61941429]
[1748892336351,0.00048406,104510.0,104500.0,0.61941428]
[1748892336566,0.00048406,104510.0,104500.0,0.7119255]
[1748892338955,0.00048406,104510.0,104500.0,0.71192697]
[1748892340809,0.00048406,104510.0,104500.0,0.71192862]
[1748892342874,0.00048406,104510.0,104500.0,0.71192937]
[1748892346785,0.00048406,104510.0,104500.0,0.71193062]
[1748892350595,0.00048406,104510.0,104500.0,0.70277498]
[1748892350821,0.00048406,104510.0,104500.0,0.71193058]
[1748892354562,0.00048406,104510.0,104500.0,0.71193067]
[1748892357680,0.00048406,104510.0,104500.0,0.71193621]
[1748892362198,0.00048406,104510.0,104500.0,0.71193883]
[1748892366185,0.00048406,104510.0,104500.0,0.7119403]
[1748892367321,0.00048406,104510.0,104500.0,1.30731645]
[1748892367756,0.00048406,104510.0,104500.0,1.8068383]
[1748892368034,0.00048406,104510.0,104500.0,1.30731645]
[1748892368259,0.00048406,104510.0,104500.0,1.30331645]
[1748892368485,0.00048406,104510.0,104500.0,1.31531645]
[1748892369135,0.00048406,104510.0,104500.0,1.31131645]
[1748892369411,0.00048406,104510.0,104500.0,1.32305941]
[1748892369627,0.00048406,104510.0,104500.0,1.31389409]
[1748892369835,0.00048406,104510.0,104500.0,0.82378154]
[1748892375631,0.00048406,104510.0,104500.0,0.82377195]
[1748892376053,0.00048406,104510.0,104500.0,0.81462928]
[1748892376335,0.00048406,104510.0,104500.0,0.82377184]
[1748892377669,0.25624464,104550.0,104540.0,0.00956562]
[1748892377877,0.25624464,104550.0,104540.0,0.21044547]
[1748892377878,0.41476535,104550.0,104540.0,0.21044547]
[1748892380782,0.45283446,104550.0,104540.0,0.04304762]
[1748892380972,0.49229594,104550.0,104540.0,0.04304762]
[1748892385349,0.01913042,104540.0,104530.0,0.22546488]
[1748892386322,0.02869586,104540.0,104530.0,0.22546488]
[1748892386756,0.2295758,104540.0,104530.0,0.22546488]
[1748892387631,0.03826148,104540.0,104530.0,0.22546488]
[1748892388154,0.04782664,104540.0,104530.0,0.22546488]
[1748892388371,0.04782664,104540.0,104530.0,0.26876296]
[1748892388606,0.23914096,104540.0,104530.0,0.26876351]
[1748892388840,0.21046524,104530.0,104520.0,0.56401589]
[1748892389078,0.20789907,104530.0,104510.0,0.23318389]
[1748892389301,0.20789907,104530.0,104510.0,0.28060414]
[1748892389302,0.01913371,104520.0,104510.0,0.28060414]
[1748892389530,0.02870079,104520.0,104510.0,0.28060414]
[1748892389741,0.01913371,104520.0,104510.0,0.62060414]
[1748892389956,0.01913371,104520.0,104510.0,0.71311536]
[1748892390163,0.01913371,104520.0,104510.0,0.71511536]
[1748892390610,0.01913371,104520.0,104510.0,0.71311536]
[1748892390858,0.01913371,104520.0,104510.0,0.71711536]
[1748892391726,0.01913371,104520.0,104510.0,0.72111536]
[1748892392221,0.00956672,104520.0,104510.0,0.72111536]
[1748892392445,0.01913362,104520.0,104510.0,0.72111536]
[1748892393313,0.01913362,104520.0,104510.0,0.7211194]
[1748892393718,0.0287007,104520.0,104510.0,0.7211194]
[1748892394994,5.19430563,104530.0,104520.0,0.21671829]
[1748892395199,0.19133263,104530.0,104520.0,0.27945722]
[1748892395616,0.19133263,104530.0,104520.0,0.28902449]
[1748892396032,0.19133263,104530.0,104520.0,0.07853893]
[1748892396467,0.19133263,104530.0,104520.0,0.26988986]
[1748892396885,0.19133263,104530.0,104520.0,0.07853893]
[1748892397291,0.2003033,104530.0,104520.0,0.07853893]
[1748892397729,0.19133263,104530.0,104520.0,0.07853893]
[1748892397941,0.19133263,104530.0,104520.0,0.26988986]
[1748892398157,0.20030325,104530.0,104520.0,0.27945731]
[1748892398362,0.19133263,104530.0,104520.0,0.27945731]
[1748892399329,0.2003033,104530.0,104520.0,0.26988986]
[1748892399776,0.19133263,104530.0,104520.0,0.2794574]
[1748892400399,0.2003033,104530.0,104520.0,0.07853893]
[1748892400613,0.19133263,104530.0,104520.0,0.07853893]
[1748892400828,0.20030388,104530.0,104520.0,0.2794574]
[1748892401040,0.19133263,104530.0,104520.0,0.2794574]
[1748892401461,0.20030388,104530.0,104520.0,0.29859221]
[1748892401682,0.19133263,104530.0,104520.0,0.29859221]
[1748892402101,0.20030387,104530.0,104520.0,0.29859221]
[1748892402342,0.19133263,104530.0,104520.0,0.29859221]
[1748892402548,0.19133263,104530.0,104520.0,0.32375948]
[1748892403403,0.19133263,104530.0,104520.0,0.31419221]
[1748892403636,0.19133263,104530.0,104520.0,0.30462485]
[1748892403865,0.19133263,104530.0,104520.0,0.23231847]
[1748892404293,0.20030393,104530.0,104520.0,0.24188592]
[1748892404506,0.20089907,104530.0,104520.0,0.25145328]
[1748892404923,0.26711242,104530.0,104520.0,0.25145328]
[1748892405156,0.26711242,104530.0,104520.0,0.35046197]
[1748892405375,0.27608373,104530.0,104520.0,0.35046197]
[1748892405590,0.26711242,104530.0,104520.0,0.35046197]
[1748892406087,0.26711437,104530.0,104520.0,0.35046197]
[1748892408249,0.26711437,104530.0,104520.0,0.35046207]
[1748892408480,0.26711437,104530.0,104520.0,0.36002906]
[1748892408703,0.23327836,104530.0,104520.0,0.35046207]
[1748892408881,0.26711915,104530.0,104520.0,0.35046197]
[1748892410206,0.26711915,104530.0,104520.0,0.26102036]
[1748892410402,0.27609046,104530.0,104520.0,0.26102036]
[1748892410638,0.28625186,104530.0,104520.0,0.27058735]
[1748892410844,0.29522317,104530.0,104520.0,0.27058735]
[1748892411045,0.28625186,104530.0,104520.0,0.27058735]
[1748892411270,0.29581849,104530.0,104520.0,0.3600288]
[1748892411484,0.3047898,104530.0,104520.0,0.3600288]
[1748892411657,0.31376113,104530.0,104520.0,0.3600288]
[1748892411824,0.3047898,104530.0,104520.0,0.3600288]
[1748892412638,0.31376113,104530.0,104520.0,0.3600288]
[1748892412952,0.3047898,104530.0,104520.0,0.3600288]
[1748892413158,0.31376113,104530.0,104520.0,0.3600288]
[1748892413312,0.3047898,104530.0,104520.0,0.3600288]
[1748892413514,0.10389054,104530.0,104520.0,0.3600288]
[1748892414187,0.11286187,104530.0,104520.0,0.3600288]
[1748892414611,0.10389054,104530.0,104520.0,0.3600288]
[1748892415262,0.29522317,104530.0,104520.0,0.3600288]
[1748892415899,0.10389054,104530.0,104520.0,0.36002816]
[1748892416306,0.11286187,104530.0,104520.0,0.36002816]
[1748892416514,0.11286737,104530.0,104520.0,0.36002816]
[1748892416726,0.10389604,104530.0,104520.0,0.36002816]
[1748892417142,0.11286736,104530.0,104520.0,0.36002816]
[1748892417344,0.10389604,104530.0,104520.0,0.36002816]
[1748892419255,0.10364253,104530.0,104520.0,0.36002816]
[1748892419459,0.11261385,104530.0,104520.0,0.36002816]
[1748892419663,0.10364253,104530.0,104520.0,0.36002816]
[1748892419949,0.10389539,104530.0,104520.0,0.36002816]
[1748892420165,0.11286668,104530.0,104520.0,0.36002816]
[1748892420392,0.11286662,104530.0,104520.0,0.36002816]
[1748892420803,0.30419925,104530.0,104520.0,0.36002816]
[1748892421007,0.11286662,104530.0,104520.0,0.36002816]
[1748892421205,0.11286663,104530.0,104520.0,0.36002816]
[1748892421409,0.29522802,104530.0,104520.0,0.36002816]
[1748892421583,0.30479456,104530.0,104520.0,0.36002816]
[1748892422907,0.12243317,104530.0,104520.0,0.36002816]
[1748892423329,0.11346193,104530.0,104520.0,0.36002816]
[1748892423538,0.31436119,104530.0,104520.0,0.27058671]
[1748892423751,0.11346193,104530.0,104520.0,0.27058671]
[1748892423956,0.31436119,104530.0,104520.0,0.27058671]
[1748892424165,0.32333243,104530.0,104520.0,0.27058671]
[1748892424385,0.32334783,104530.0,104520.0,0.27058671]
[1748892424611,0.20093136,104520.0,104510.0,0.0312]
[1748892424851,0.20093136,104520.0,104510.0,0.016]
[1748892424852,5.27911739,104520.0,104510.0,0.016]
[1748892425099,5.29365905,104520.0,104510.0,0.016]
[1748892425331,5.25980431,104520.0,104510.0,0.016]
[1748892425566,5.25083472,104520.0,104510.0,0.016]
[1748892425806,5.09332198,104520.0,104510.0,0.24564198]
[1748892426040,0.11647893,104520.0,104510.0,0.26084198]
[1748892426264,0.10750939,104520.0,104510.0,0.26084198]
[1748892426484,0.11707684,104520.0,104510.0,0.26084198]
[1748892426728,0.29886105,104520.0,104510.0,0.0312]
[1748892426944,0.27015952,104520.0,104510.0,0.0312]
[1748892427395,5.29664292,104520.0,104510.0,0.016]
[1748892427611,5.29664293,104520.0,104510.0,0.016]
[1748892427827,5.28767337,104520.0,104510.0,0.016]
[1748892428480,5.25382174,104520.0,104510.0,0.016]
[1748892428937,5.28766657,104520.0,104510.0,0.016]
[1748892429158,5.38352087,104520.0,104510.0,0.016]
[1748892429385,0.2009377,104510.0,104500.0,0.0315]
[1748892429609,0.37757046,104510.0,104500.0,0.015]
[1748892430529,0.38654072,104510.0,104500.0,0.02]
[1748892430767,0.38667605,104510.0,104500.0,0.02]
[1748892430981,5.38964905,104510.0,104500.0,0.02]
[1748892431622,5.3896442,104510.0,104500.0,0.0365]
[1748892431837,5.33239156,104510.0,104500.0,0.0375]
[1748892432057,5.40060563,104510.0,104500.0,0.0315]
[1748892432269,5.3916353,104510.0,104500.0,0.0315]
[1748892432483,5.40260563,104510.0,104500.0,0.0315]
[1748892432704,5.40260565,104510.0,104500.0,0.0315]
[1748892432925,5.6879953,104510.0,104500.0,0.0315]
[1748892433569,5.6969656,104510.0,104500.0,0.0315]
[1748892433797,0.19140425,104500.0,104490.0,0.0317]
[1748892434041,0.36801347,104500.0,104490.0,0.0151]
[1748892435128,0.36801347,104500.0,104490.0,0.0281]
[1748892435343,0.36801347,104500.0,104490.0,0.0221]
[1748892435563,5.37098647,104500.0,104490.0,0.007]
[1748892435797,5.37296843,104500.0,104490.0,0.007]
[1748892436232,0.22968557,104490.0,104480.0,0.24276606]
[1748892436449,0.22011601,104490.0,104480.0,0.24276606]
[1748892436708,0.22011601,104490.0,104480.0,0.24276624]
[1748892437139,0.21054618,104490.0,104480.0,0.0322]
[1748892437361,0.21054618,104490.0,104480.0,0.24276632]
[1748892437362,0.20097607,104490.0,104480.0,0.24276632]
[1748892437781,0.21551692,104490.0,104480.0,0.0322]
[1748892438014,0.21551692,104490.0,104480.0,0.0462]
[1748892438015,0.34029153,104490.0,104480.0,0.0462]
[1748892438452,0.37948075,104490.0,104480.0,0.24719539]
[1748892438663,0.37948075,104490.0,104480.0,0.2497665]
[1748892438880,0.37948075,104490.0,104480.0,0.23319539]
[1748892439105,0.38048075,104490.0,104480.0,0.23319539]
[1748892439331,0.38248075,104490.0,104480.0,0.23319539]
[1748892440206,0.38248075,104490.0,104480.0,0.2427665]
[1748892440661,0.38248075,104490.0,104480.0,0.25233752]
[1748892440899,0.04218922,104490.0,104480.0,0.31776429]
[1748892441131,0.003,104490.0,104480.0,0.65776429]
[1748892441583,0.0419909,104490.0,104480.0,0.95216429]
[1748892441799,0.003,104490.0,104480.0,0.95216429]
[1748892443412,0.003,104490.0,104480.0,0.90587892]
[1748892444076,0.04242642,104490.0,104480.0,0.90587892]
[1748892444291,0.003,104490.0,104480.0,0.90587892]
[1748892444780,0.003,104490.0,104480.0,0.61147892]
[1748892444987,0.01256956,104490.0,104480.0,0.61147892]
[1748892445412,0.0221393,104490.0,104480.0,0.61147892]
[1748892445622,0.0221393,104490.0,104480.0,0.63730714]
[1748892446270,0.01256956,104490.0,104480.0,0.63730714]
[1748892446917,0.0221393,104490.0,104480.0,0.63730714]
[1748892447608,0.02213921,104490.0,104480.0,0.63730714]
[1748892448031,0.04221109,104490.0,104480.0,0.63730714]
[1748892448246,0.003,104490.0,104480.0,0.63730714]
[1748892448784,0.01256956,104490.0,104480.0,0.63730714]
[1748892448998,0.003,104490.0,104480.0,0.63730714]
[1748892449210,0.01256956,104490.0,104480.0,0.63730714]
[1748892450430,0.0221393,104490.0,104480.0,0.63730714]
[1748892450635,0.05091917,104490.0,104480.0,0.63730714]
[1748892451087,0.06048891,104490.0,104480.0,0.63730714]
[1748892451517,0.05091917,104490.0,104480.0,0.63730714]
[1748892453258,0.06048891,104490.0,104480.0,0.63730714]
[1748892454167,0.24232522,104490.0,104480.0,0.61816574]
[1748892454407,0.24232522,104490.0,104480.0,0.0322]
[1748892454408,0.2518956,104490.0,104480.0,0.0322]
[1748892454853,0.2518956,104490.0,104480.0,0.0156]
[1748892455308,0.20099539,104480.0,104470.0,0.23241419]
[1748892455494,0.20099539,104480.0,104470.0,0.23241454]
[1748892455743,0.21056632,104480.0,104470.0,0.24198648]
[1748892455971,0.21056632,104480.0,104470.0,0.22284251]
[1748892456276,0.23947636,104480.0,104470.0,0.0314]
[1748892456487,5.24244936,104480.0,104470.0,0.0384]
[1748892456701,5.24244936,104480.0,104470.0,0.0454]
[1748892456915,5.24244936,104480.0,104470.0,0.24641445]
[1748892457777,5.24244936,104480.0,104470.0,0.3280244]
[1748892457991,5.24244936,104480.0,104470.0,0.33759615]
[1748892458840,5.24244936,104480.0,104470.0,0.3280244]
[1748892459474,5.24244936,104480.0,104470.0,0.2559863]
[1748892459689,5.24244936,104480.0,104470.0,0.26555796]
[1748892459903,5.24244936,104480.0,104470.0,0.26555805]
[1748892460142,5.24244936,104480.0,104470.0,0.27512971]
[1748892461446,5.24244936,104480.0,104470.0,0.28470128]
[1748892462524,5.24244936,104480.0,104470.0,0.24641445]
[1748892462966,5.24244936,104480.0,104470.0,0.33472431]
[1748892463615,5.24244936,104480.0,104470.0,0.25598611]
[1748892464703,0.22975134,104460.0,104450.0,0.22303071]
[1748892464918,0.20103388,104460.0,104450.0,0.19147917]
[1748892465128,0.20103388,104460.0,104450.0,0.20105303]
[1748892465406,0.20105294,104450.0,104440.0,0.57259518]
[1748892465622,0.21062644,104450.0,104440.0,0.59174446]
[1748892465835,0.24126167,104450.0,104440.0,0.0316]
[1748892466049,0.24126167,104450.0,104440.0,0.03208406]
[1748892466273,5.34008897,104450.0,104440.0,0.03208406]
[1748892466704,5.34008897,104450.0,104440.0,0.03908406]
[1748892467131,5.34008897,104450.0,104440.0,0.04608406]
[1748892467446,5.34008897,104450.0,104440.0,0.03908406]
[1748892467658,5.34108897,104450.0,104440.0,0.03908406]
[1748892468509,5.34108897,104450.0,104440.0,0.03208406]
[1748892468734,5.64156897,104450.0,104440.0,0.03308406]
[1748892473291,5.64156897,104450.0,104440.0,0.22458157]
[1748892473494,5.64156897,104450.0,104440.0,0.03308406]
[1748892476572,5.25123467,104450.0,104440.0,0.22458157]
[1748892476943,5.25123467,104450.0,104440.0,0.25330508]
[1748892476944,0.007,104450.0,104440.0,0.25330508]
[1748892477156,0.007,104450.0,104440.0,0.54782508]
[1748892479666,0.01657313,104450.0,104440.0,0.54782508]
[1748892479875,0.007,104450.0,104440.0,0.54782508]
[1748892480185,0.01657313,104450.0,104440.0,0.54782508]
[1748892480394,0.007,104450.0,104440.0,0.54782508]
[1748892481096,0.007,104450.0,104440.0,1.0761906]
[1748892481313,0.007,104450.0,104440.0,1.1669506]
[1748892482643,0.007,104450.0,104440.0,1.66659136]
[1748892483094,0.007,104450.0,104440.0,1.1669506]
[1748892483738,0.007,104450.0,104440.0,1.1659506]
[1748892483949,0.001,104450.0,104440.0,1.1659506]
[1748892485002,0.02871444,104470.0,104460.0,0.25197886]
[1748892485429,0.02871233,104480.0,104470.0,0.25195777]
[1748892485657,0.26865829,104480.0,104470.0,0.25195795]
[1748892486092,0.25908773,104480.0,104470.0,0.25195795]
[1748892486739,0.25908764,104480.0,104470.0,0.26152952]
[1748892486969,0.08323465,104480.0,104470.0,0.26152952]
[1748892487193,0.27208773,104480.0,104470.0,0.26252952]
[1748892489398,0.26251689,104480.0,104470.0,0.24338629]
[1748892490365,0.25294596,104480.0,104470.0,0.24338629]
[1748892490798,0.26251662,104480.0,104470.0,0.25295777]
[1748892491019,0.27208782,104480.0,104470.0,0.24338629]
[1748892491901,0.26251707,104480.0,104470.0,0.24338629]
[1748892492119,0.0095712,104480.0,104470.0,0.24338629]
[1748892492330,0.19142419,104480.0,104470.0,0.24338629]
[1748892492542,0.20099539,104480.0,104470.0,0.25295795]
[1748892493448,0.20099539,104480.0,104470.0,0.24338629]
[1748892493680,0.20099539,104480.0,104470.0,0.23381454]
[1748892493895,0.20099539,104480.0,104470.0,0.23381463]
[1748892494110,0.20099539,104480.0,104470.0,0.24338666]
[1748892494328,0.23028591,104480.0,104470.0,0.2529586]
[1748892495062,0.23028591,104480.0,104470.0,0.26253035]
[1748892495277,0.23028591,104480.0,104470.0,0.30888679]
[1748892495487,0.23028591,104480.0,104470.0,0.26253035]
[1748892496347,0.23028591,104480.0,104470.0,0.2529586]
[1748892497520,0.23028591,104480.0,104470.0,0.2721022]
[1748892500131,0.23028591,104480.0,104470.0,0.2529586]
[1748892500567,0.23028591,104480.0,104470.0,0.20201463]
[1748892500752,0.23028591,104480.0,104470.0,0.21158666]
[1748892501197,0.23028591,104480.0,104470.0,0.2211586]
[1748892501411,0.22071471,104480.0,104470.0,0.001]
[1748892501631,0.22071471,104480.0,104470.0,0.20201454]
[1748892501858,5.29830344,104480.0,104470.0,0.001]
[1748892502078,5.71123859,104480.0,104470.0,0.001]
[1748892502342,0.20101445,104470.0,104460.0,0.0153]
[1748892503224,0.20101445,104470.0,104450.0,0.0161]
[1748892503225,0.20103369,104460.0,104450.0,0.0161]
[1748892503436,5.20400669,104460.0,104450.0,0.0322]
[1748892504070,5.20400669,104460.0,104450.0,0.23325312]
[1748892504290,5.19443384,104460.0,104450.0,0.04177395]
[1748892504505,5.19443384,104460.0,104450.0,0.0322]
[1748892504926,5.19543384,104460.0,104450.0,0.0322]
[1748892505270,0.20105294,104450.0,104440.0,0.03098406]
[1748892505482,0.20105294,104450.0,104440.0,0.24163122]
[1748892505688,0.21062662,104450.0,104440.0,0.26078032]
[1748892505892,0.21062662,104450.0,104440.0,0.26078041]
[1748892506333,0.21062662,104450.0,104440.0,0.27635482]
[1748892507360,0.21062662,104450.0,104440.0,0.28335482]
[1748892508397,0.22020057,104450.0,104440.0,0.27378041]
[1748892508592,0.22020057,104450.0,104440.0,0.26420591]
[1748892508804,0.22020057,104450.0,104440.0,0.27378032]
[1748892509214,0.22020057,104450.0,104440.0,0.26420591]
[1748892509620,0.22020057,104450.0,104440.0,0.27378032]
[1748892509866,0.22020057,104450.0,104440.0,0.26420591]
[1748892510252,0.21062689,104450.0,104440.0,0.25463122]
[1748892510460,0.21062689,104450.0,104440.0,0.27378032]
[1748892510928,0.21062689,104450.0,104440.0,0.26420582]
[1748892511262,0.21062689,104450.0,104440.0,0.27378032]
[1748892511475,0.21062689,104450.0,104440.0,0.26420582]
[1748892511688,0.21062689,104450.0,104440.0,0.05355893]
[1748892511890,0.20105312,104450.0,104440.0,0.24505626]
[1748892512753,0.2106268,104450.0,104440.0,0.26420517]